[Event "FIDE World Senior-Women CC 2023"]
[Site "Terrasini"]
[Date "2023.10.25"]
[Round "1.1"]
[White "Gaprindashvili, Nona"]
[Black "Kierzek, Mira"]
[Result "1-0"]
[ECO "D10"]
[WhiteElo "2267"]
[BlackElo "1941"]
[Annotator "ChessBase"]
[PlyCount "79"]
[EventDate "2023.10.22"]
[EventType "swiss"]
[EventCountry "ITA"]
[SourceTitle "playchess.com"]
[Source "ChessBase"]
[SourceQuality "1"]
[TimeControl "40/5400+30:1800+30"]

1. d4 {[%emt 0:00:30]} d5 {[%emt 0:00:20]} 2. c4 {[%emt 0:00:00]} c6 {[%emt 0:00:18]} 3. cxd5 {[%emt 0:00:07]} cxd5 {[%emt 0:00:12]} 4. Bf4 {[%emt 0:00:10]} Nc6 {[%emt 0:00:44]} 5. e3 {[%emt 0:00:23]} Nf6 {[%emt 0:01:01]} 6. Nc3 {[%emt 0:00:11]} a6 {[%emt 0:00:33]} 7. a3 {[%emt 0:00:33]} Bf5 {[%emt 0:07:35]} 8. Nf3 {[%emt 0:06:23]} e6 {[%emt 0:02:56]} 9. Qb3 {[%emt 0:21:02]} Ra7 {[%emt 0:12:29]} 10. Ne5 {[%emt 0:11:30]} Be7 {[%emt 0:25:53]} 11. Be2 {[%emt 0:13:32]} O-O {[%emt 0:00:49]} 12. O-O {[%emt 0:01:06]} Nxe5 {[%emt 0:04:52]} 13. Bxe5 {[%emt 0:00:11]} b5 {[%emt 0:03:08]} 14. Bxf6 {[%emt 0:18:35]} gxf6 {[%emt 0:02:50]} 15. Rac1 {[%emt 0:02:12]} Rc7 {[%emt 0:05:29]} 16. Na2 {[%emt 0:01:00]} Bd6 {[%emt 0:11:23]} 17. Nb4 {[%emt 0:03:05]} Bxb4 {[%emt 0:05:56]} 18. axb4 {[%emt 0:00:30]} Qd6 {[%emt 0:05:03]} 19. Rc5 {[%emt 0:02:15]} Rxc5 {[%emt 0:02:49]} 20. bxc5 {[%emt 0:00:02]} Qc6 {[%emt 0:00:17]} 21. Qc3 {[%emt 0:00:49]} Re8 {[%emt 0:00:43]} 22. b4 {[%emt 0:05:14]} Kg7 {[%emt 0:00:33]} 23. Ra1 {[%emt 0:00:28]} e5 {[%emt 0:01:37]} 24. Bf3 {[%emt 0:03:25]} e4 {[%emt 0:00:31]} 25. Be2 {[%emt 0:00:09]} Bc8 {[%emt 0:00:14]} 26. f3 {[%emt 0:02:17]} f5 {[%emt 0:00:13]} 27. fxe4 {[%emt 0:01:40]} fxe4 {[%emt 0:00:15]} 28. Qe1 {[%emt 0:00:19]} Kh8 {[%emt 0:01:01]} 29. Qf2 {[%emt 0:00:53]} f5 {[%emt 0:01:20]} 30. Qf4 {[%emt 0:00:26]} Qg6 {[%emt 0:00:54]} 31. Rf1 {[%emt 0:00:46]} h6 {[%emt 0:00:46]} 32. Bd1 {[%emt 0:02:57]} Re7 {[%emt 0:01:45]} 33. Bb3 {[%emt 0:00:06]} Qe6 {[%emt 0:00:54]} 34. g3 {[%emt 0:00:33]} Kh7 {[%emt 0:00:30]} 35. Qh4 {[%emt 0:00:21]} Bb7 {[%emt 0:00:41]} 36. Rxf5 {[%emt 0:00:42]} Rg7 {[%emt 0:00:34]} 37. Rf6 {[%emt 0:00:25]} Qg4 {[%emt 0:01:20]} 38. Rxh6+ {[%emt 0:00:11]} Kg8 {[%emt 0:00:05]} 39. Qxg4 {[%emt 0:00:16]} Rxg4 {[%emt 0:00:01]} 40. Rb6 {[%emt 0:00:12]} 1-0

[Event "FIDE World Senior-Women CC 2023"]
[Site "Terrasini"]
[Date "2023.10.25"]
[Round "1.2"]
[White "Leszner, Liliana"]
[Black "Klinova, Masha"]
[Result "0-1"]
[ECO "B06"]
[WhiteElo "1891"]
[BlackElo "2249"]
[Annotator "ChessBase"]
[PlyCount "84"]
[EventDate "2023.10.22"]
[EventType "swiss"]
[EventCountry "ITA"]
[SourceTitle "playchess.com"]
[Source "ChessBase"]
[SourceQuality "1"]
[TimeControl "40/5400+30:1800+30"]

1. e4 {[%emt 0:00:03]} d6 {[%emt 0:00:05]} 2. d4 {[%emt 0:00:15]} Nf6 {[%emt 0:00:05]} 3. Nc3 {[%emt 0:00:09]} g6 {[%emt 0:00:05]} 4. f3 {[%emt 0:00:19]} a6 {[%emt 0:00:24]} 5. a4 {[%emt 0:01:01]} Bg7 {[%emt 0:00:35]} 6. Be3 {[%emt 0:01:09]} Nc6 {[%emt 0:01:32]} 7. Bc4 {[%emt 0:02:05]} O-O {[%emt 0:03:08]} 8. Qd2 {[%emt 0:00:44]} e5 {[%emt 0:01:05]} 9. Nge2 {[%emt 0:00:29]} exd4 {[%emt 0:04:40]} 10. Nxd4 {[%emt 0:00:19]} Nxd4 {[%emt 0:01:42]} 11. Bxd4 {[%emt 0:01:01]} Be6 {[%emt 0:01:56]} 12. Be2 {[%emt 0:01:21]} Qe7 {[%emt 0:07:01]} 13. O-O {[%emt 0:02:25]} Rad8 {[%emt 0:01:10]} 14. Rae1 {[%emt 0:09:01]} Rfe8 {[%emt 0:04:26]} 15. Nd5 {[%emt 0:05:32]} Bxd5 {[%emt 0:04:33]} 16. exd5 {[%emt 0:02:20]} Qd7 {[%emt 0:01:41]} 17. b3 {[%emt 0:04:40]} Qf5 {[%emt 0:02:27]} 18. c4 {[%emt 0:04:36]} Nd7 {[%emt 0:02:49]} 19. Bf2 {[%emt 0:06:58]} Nc5 {[%emt 0:03:26]} 20. Qa2 {[%emt 0:04:30]} a5 {[%emt 0:08:45]} 21. Bh4 {[%emt 0:09:14]} Bf6 {[%emt 0:03:22]} 22. g4 {[%emt 0:02:16]} Qf4 {[%emt 0:02:36]} 23. Bg3 {[%emt 0:04:44]} Qe3+ {[%emt 0:04:35]} 24. Bf2 {[%emt 0:12:16]} Qxb3 {[%emt 0:01:53]} 25. Qxb3 {[%emt 0:01:39]} Nxb3 {[%emt 0:00:06]} 26. Bd3 {[%emt 0:01:01]} Nd2 {[%emt 0:03:45]} 27. Rxe8+ {[%emt 0:00:08]} Rxe8 {[%emt 0:00:04]} 28. Rc1 {[%emt 0:04:31]} Nxf3+ {[%emt 0:00:50]} 29. Kg2 {[%emt 0:00:18]} Ne5 {[%emt 0:02:05]} 30. Be2 {[%emt 0:00:08]} b6 {[%emt 0:03:33]} 31. Bg3 {[%emt 0:02:27]} Nd7 {[%emt 0:00:39]} 32. Kf3 {[%emt 0:01:53]} Bd4 {[%emt 0:01:25]} 33. Bf4 {[%emt 0:02:43]} Nc5 {[%emt 0:02:33]} 34. Bd1 {[%emt 0:01:55]} Be5 {[%emt 0:03:04]} 35. Bc2 {[%emt 0:02:10]} Bxf4 {[%emt 0:00:24]} 36. Kxf4 {[%emt 0:00:03]} Re2 {[%emt 0:00:14]} 37. h3 {[%emt 0:00:37]} Rd2 {[%emt 0:00:35]} 38. h4 {[%emt 0:03:04]} Rd4+ {[%emt 0:00:23]} 39. Kg5 {[%emt 0:04:20]} Kg7 {[%emt 0:01:42]} 40. h5 {[%emt 0:00:24]} h6+ {[%emt 0:00:16]} 41. Kh4 {[%emt 0:30:08]} g5+ {[%emt 0:30:21]} 42. Kg3 {[%emt 0:00:20]} Rxc4 {[%emt 0:00:08]} 0-1

[Event "FIDE World Senior-Women CC 2023"]
[Site "Terrasini"]
[Date "2023.10.25"]
[Round "1.3"]
[White "Calzetta Ruiz, Monica"]
[Black "Ni, Polina"]
[Result "0-1"]
[ECO "B45"]
[WhiteElo "2239"]
[BlackElo "1866"]
[Annotator "ChessBase"]
[PlyCount "82"]
[EventDate "2023.10.22"]
[EventType "swiss"]
[EventCountry "ITA"]
[SourceTitle "playchess.com"]
[Source "ChessBase"]
[SourceQuality "1"]
[TimeControl "40/5400+30:1800+30"]

1. e4 {[%emt 0:00:04]} c5 {[%emt 0:00:02]} 2. Nf3 {[%emt 0:00:14]} e6 {[%emt 0:00:03]} 3. d4 {[%emt 0:00:14]} cxd4 {[%emt 0:00:05]} 4. Nxd4 {[%emt 0:00:05]} Nf6 {[%emt 0:00:06]} 5. Nc3 {[%emt 0:00:06]} Nc6 {[%emt 0:00:04]} 6. a3 {[%emt 0:11:59]} d5 {[%emt 0:09:48]} 7. exd5 {[%emt 0:02:49]} Nxd5 {[%emt 0:04:10]} 8. Nxd5 {[%emt 0:20:57]} Qxd5 {[%emt 0:07:08]} 9. Be3 {[%emt 0:00:52]} Nxd4 {[%emt 0:16:57]} 10. Qxd4 {[%emt 0:04:05]} Qxd4 {[%emt 0:06:57]} 11. Bxd4 {[%emt 0:00:08]} Bd7 {[%emt 0:00:56]} 12. O-O-O {[%emt 0:09:39]} Bc6 {[%emt 0:08:26]} 13. h4 {[%emt 0:11:35]} f6 {[%emt 0:16:41]} 14. Bc4 {[%emt 0:05:47]} Bxg2 {[%emt 0:08:18]} 15. Rhe1 {[%emt 0:01:03]} Bh3 {[%emt 0:02:37]} 16. Rd3 {[%emt 0:14:42]} Bf5 {[%emt 0:02:12]} 17. Rf3 {[%emt 0:00:33]} Bg4 {[%emt 0:05:35]} 18. Rg3 {[%emt 0:00:03]} h5 {[%emt 0:01:02]} 19. Rc3 {[%emt 0:06:35]} Bd6 {[%emt 0:02:36]} 20. Bd5 {[%emt 0:03:39]} Ke7 {[%emt 0:04:52]} 21. Bxb7 {[%emt 0:01:04]} Rab8 {[%emt 0:00:54]} 22. Bc6 {[%emt 0:00:12]} Bf4+ {[%emt 0:00:57]} 23. Kb1 {[%emt 0:00:10]} Bd2 {[%emt 0:00:36]} 24. Rg1 {[%emt 0:03:08]} Bxc3 {[%emt 0:00:18]} 25. Bxc3 {[%emt 0:00:02]} Rhc8 {[%emt 0:00:45]} 26. Bb4+ {[%emt 0:00:40]} Rxb4 {[%emt 0:00:23]} 27. axb4 {[%emt 0:00:01]} Rxc6 {[%emt 0:00:06]} 28. f3 {[%emt 0:00:12]} Bxf3 {[%emt 0:01:05]} 29. Rxg7+ {[%emt 0:00:03]} Kd6 {[%emt 0:00:11]} 30. Rxa7 {[%emt 0:02:46]} Be4 {[%emt 0:00:19]} 31. b5 {[%emt 0:00:02]} Rxc2 {[%emt 0:00:52]} 32. Ka2 {[%emt 0:00:46]} Rc7 {[%emt 0:00:52]} 33. Ra6+ {[%emt 0:01:29]} Kc5 {[%emt 0:00:27]} 34. Ka3 {[%emt 0:00:58]} Bd5 {[%emt 0:00:37]} 35. Ka4 {[%emt 0:00:10]} f5 {[%emt 0:00:30]} 36. b4+ {[%emt 0:00:03]} Kd4 {[%emt 0:00:25]} 37. Ka5 {[%emt 0:01:24]} f4 {[%emt 0:00:28]} 38. b6 {[%emt 0:00:27]} Rb7 {[%emt 0:00:25]} 39. Ra8 {[%emt 0:00:35]} f3 {[%emt 0:00:39]} 40. Rf8 {[%emt 0:00:36]} Ke3 {[%emt 0:00:32]} 41. b5 {[%emt 0:30:30]} f2 {[%emt 0:30:27]} 0-1

[Event "FIDE World Senior-Women CC 2023"]
[Site "Terrasini"]
[Date "2023.10.25"]
[Round "1.4"]
[White "Baliuniene, Margarita"]
[Black "Mikhaylova, Irina"]
[Result "1/2-1/2"]
[ECO "D94"]
[WhiteElo "1865"]
[BlackElo "2216"]
[Annotator "RC"]
[PlyCount "54"]
[EventDate "2023.10.22"]
[EventType "swiss"]
[EventCountry "ITA"]
[SourceTitle "playchess.com"]
[Source "ChessBase"]
[SourceQuality "1"]
[TimeControl "40/5400+30:1800+30"]

1. d4 {[%emt 0:00:02]} Nf6 {[%emt 0:00:16]} 2. c4 {[%emt 0:00:08]} g6 {[%emt 0:00:24]} 3. Nc3 {[%emt 0:00:05]} d5 {[%emt 0:00:13]} 4. e3 {[%emt 0:00:14]} Bg7 {[%emt 0:00:17]} 5. Nf3 {[%emt 0:00:17]} O-O {[%emt 0:00:25]} 6. cxd5 {[%emt 0:00:10]} Nxd5 {[%emt 0:00:18]} 7. Bc4 {[%emt 0:00:15]} Nb6 {[%emt 0:10:33]} 8. Bb3 {[%emt 0:01:00]} c5 {[%emt 0:20:13]} 9. O-O {[%emt 0:02:49]} cxd4 {[%emt 0:01:57]} 10. exd4 {[%emt 0:01:12]} Bg4 {[%emt 0:01:47]} 11. Be3 {[%emt 0:05:11]} Nc6 {[%emt 0:01:28]} 12. h3 {[%emt 0:02:25]} Bxf3 {[%emt 0:05:41]} 13. Qxf3 {[%emt 0:00:05]} Na5 {[%emt 0:00:08]} 14. Rfd1 {[%emt 0:04:52]} Nbc4 {[%emt 0:09:39]} 15. Bxc4 {[%emt 0:06:47]} Nxc4 {[%emt 0:00:05]} 16. b3 {[%emt 0:03:40]} Nxe3 {[%emt 0:04:13]} 17. fxe3 {[%emt 0:01:03]} Rc8 {[%emt 0:00:25]} 18. Rac1 {[%emt 0:03:55]} Qd7 {[%emt 0:41:28]} 19. Qd5 {[%emt 0:05:26]} Rfd8 {[%emt 0:00:00]} 20. Qxd7 {[%emt 0:02:16]} Rxd7 {[%emt 0:00:00]} 21. Nb5 {[%emt 0:00:55]} Ra8 {[%emt 0:00:00]} 22. Kf2 {[%emt 0:10:18]} f5 {[%emt 0:00:00]} 23. Ke2 {[%emt 0:05:33]} Kf7 {[%emt 0:00:00]} 24. Rc2 {[%emt 0:00:57]} a6 {[%emt 0:00:00]} 25. Na3 {[%emt 0:00:26]} b5 {[%emt 0:00:00]} 26. Rc6 {[%emt 0:02:50]} Raa7 {[%emt 0:00:00]} 27. Nc2 {[%emt 0:08:19]} Rac7 {[%emt 0:00:00]} 1/2-1/2

[Event "FIDE World Senior-Women CC 2023"]
[Site "Terrasini"]
[Date "2023.10.25"]
[Round "1.5"]
[White "Tereladze, Sopio"]
[Black "Pancu, Aureliana-Eugenia"]
[Result "1-0"]
[ECO "C13"]
[WhiteElo "2215"]
[BlackElo "1865"]
[Annotator "ChessBase"]
[PlyCount "65"]
[EventDate "2023.10.22"]
[EventType "swiss"]
[EventCountry "ITA"]
[SourceTitle "playchess.com"]
[Source "ChessBase"]
[SourceQuality "1"]
[TimeControl "40/5400+30:1800+30"]

1. e4 {[%emt 0:00:02]} e6 {[%emt 0:00:13]} 2. d4 {[%emt 0:00:07]} d5 {[%emt 0:00:04]} 3. Nc3 {[%emt 0:00:03]} Nf6 {[%emt 0:00:13]} 4. Bg5 {[%emt 0:00:19]} dxe4 {[%emt 0:00:15]} 5. Nxe4 {[%emt 0:00:04]} Be7 {[%emt 0:00:07]} 6. Nxf6+ {[%emt 0:01:09]} Bxf6 {[%emt 0:00:40]} 7. Bxf6 {[%emt 0:00:08]} Qxf6 {[%emt 0:00:18]} 8. Nf3 {[%emt 0:00:09]} O-O {[%emt 0:03:04]} 9. Bd3 {[%emt 0:00:47]} c5 {[%emt 0:00:31]} 10. Qe2 {[%emt 0:03:27]} Nc6 {[%emt 0:03:32]} 11. Qe4 {[%emt 0:02:16]} g6 {[%emt 0:00:22]} 12. dxc5 {[%emt 0:02:20]} Qxb2 {[%emt 0:01:14]} 13. O-O {[%emt 0:00:15]} Qf6 {[%emt 0:03:32]} 14. Rfe1 {[%emt 0:02:53]} Bd7 {[%emt 0:05:01]} 15. Rab1 {[%emt 0:01:00]} Rab8 {[%emt 0:00:36]} 16. Nd2 {[%emt 0:05:18]} e5 {[%emt 0:10:23]} 17. Qe3 {[%emt 0:10:00]} Bf5 {[%emt 0:05:38]} 18. Bxf5 {[%emt 0:07:24]} gxf5 {[%emt 0:03:56]} 19. Nc4 {[%emt 0:02:03]} Rfe8 {[%emt 0:01:40]} 20. Nd6 {[%emt 0:04:00]} Re7 {[%emt 0:01:14]} 21. c3 {[%emt 0:09:09]} Qg6 {[%emt 0:58:27]} 22. f4 {[%emt 0:15:01]} b6 {[%emt 0:00:00]} 23. Qf3 {[%emt 0:05:32]} e4 {[%emt 0:00:00]} 24. Qh3 {[%emt 0:00:09]} Rd7 {[%emt 0:00:00]} 25. Nxf5 {[%emt 0:02:07]} Rd3 {[%emt 0:00:00]} 26. Ng3 {[%emt 0:06:17]} Rxc3 {[%emt 0:00:00]} 27. f5 {[%emt 0:08:09]} Qg5 {[%emt 0:00:00]} 28. Rxe4 {[%emt 0:07:46]} Rc1+ {[%emt 0:00:00]} 29. Nf1 {[%emt 0:02:04]} h5 {[%emt 0:00:00]} 30. Rxc1 {[%emt 0:00:14]} Qxc1 {[%emt 0:00:00]} 31. Qxh5 {[%emt 0:00:51]} Qxc5+ {[%emt 0:00:00]} 32. Kh1 {[%emt 0:00:41]} Qc3 {[%emt 0:00:00]} 33. Qh6 {[%emt 0:03:07]} 1-0

[Event "FIDE World Senior-Women CC 2023"]
[Site "Terrasini"]
[Date "2023.10.26"]
[Round "2.1"]
[White "Wagner-Michel, Annett"]
[Black "Gaprindashvili, Nona"]
[Result "1/2-1/2"]
[ECO "B42"]
[WhiteElo "2033"]
[BlackElo "2267"]
[Annotator "RC"]
[PlyCount "71"]
[EventDate "2023.10.22"]
[EventType "swiss"]
[EventCountry "ITA"]
[SourceTitle "playchess.com"]
[Source "ChessBase"]
[SourceQuality "1"]
[TimeControl "40/5400+30:1800+30"]

1. e4 {[%emt 0:00:03]} b6 {[%emt 0:00:09]} 2. d4 {[%emt 0:00:08]} Bb7 {[%emt 0:00:08]} 3. Bd3 {[%emt 0:00:13]} e6 {[%emt 0:00:27]} 4. Nf3 {[%emt 0:00:22]} c5 {[%emt 0:02:00]} 5. c4 {[%emt 0:01:38]} cxd4 {[%emt 0:03:27]} 6. Nxd4 {[%emt 0:00:07]} Nc6 {[%emt 0:00:11]} 7. Nxc6 {[%emt 0:05:41]} Bxc6 {[%emt 0:02:53]} 8. O-O {[%emt 0:03:05]} d6 {[%emt 0:01:35]} 9. Nc3 {[%emt 0:01:16]} Nf6 {[%emt 0:00:19]} 10. Qe2 {[%emt 0:04:36]} Be7 {[%emt 0:01:39]} 11. b3 {[%emt 0:02:22]} O-O {[%emt 0:01:05]} 12. Bb2 {[%emt 0:00:58]} Qc7 {[%emt 0:05:28]} 13. Rac1 {[%emt 0:05:25]} Rad8 {[%emt 0:03:01]} 14. Nd5 {[%emt 0:06:33]} Bxd5 {[%emt 0:09:19]} 15. cxd5 {[%emt 0:00:25]} Qb7 {[%emt 0:07:37]} 16. Ba6 {[%emt 0:12:06]} Qb8 {[%emt 0:01:50]} 17. dxe6 {[%emt 0:07:52]} fxe6 {[%emt 0:00:03]} 18. Bc4 {[%emt 0:01:09]} d5 {[%emt 0:11:50]} 19. exd5 {[%emt 0:01:04]} exd5 {[%emt 0:00:02]} 20. Qxe7 {[%emt 0:08:59]} Rf7 {[%emt 0:09:14]} 21. Qe2 {[%emt 0:07:15]} Re8 {[%emt 0:01:55]} 22. Qd3 {[%emt 0:02:41]} dxc4 {[%emt 0:01:35]} 23. Rxc4 {[%emt 0:01:47]} b5 {[%emt 0:23:35]} 24. Rh4 {[%emt 0:04:42]} Rd7 {[%emt 0:00:26]} 25. Qh3 {[%emt 0:02:30]} Qb7 {[%emt 0:03:11]} 26. Qf5 {[%emt 0:06:23]} Qd5 {[%emt 0:01:23]} 27. Qxd5+ {[%emt 0:04:30]} Rxd5 {[%emt 0:00:03]} 28. Bxf6 {[%emt 0:00:54]} gxf6 {[%emt 0:00:03]} 29. Rf4 {[%emt 0:01:35]} Kg7 {[%emt 0:01:30]} 30. g4 {[%emt 0:01:23]} Re2 {[%emt 0:02:01]} 31. a4 {[%emt 0:00:35]} Rb2 {[%emt 0:01:02]} 32. axb5 {[%emt 0:01:05]} Rxb5 {[%emt 0:01:02]} 33. Ra1 {[%emt 0:00:36]} a5 {[%emt 0:00:54]} 34. Rfa4 {[%emt 0:00:48]} Rb4 {[%emt 0:00:20]} 35. h3 {[%emt 0:03:15]} R2xb3 {[%emt 0:04:10]} 36. Rxa5 {[%emt 0:00:53]} 1/2-1/2

[Event "FIDE World Senior-Women CC 2023"]
[Site "Terrasini"]
[Date "2023.10.26"]
[Round "2.2"]
[White "Klinova, Masha"]
[Black "Makropoulou, Marina"]
[Result "1-0"]
[ECO "B51"]
[WhiteElo "2249"]
[BlackElo "2081"]
[Annotator "RC"]
[PlyCount "125"]
[EventDate "2023.10.22"]
[EventType "swiss"]
[EventCountry "ITA"]
[SourceTitle "playchess.com"]
[Source "ChessBase"]
[SourceQuality "1"]
[TimeControl "40/5400+30:1800+30"]

1. e4 {[%emt 0:00:02]} c5 {[%emt 0:00:16]} 2. Nf3 {[%emt 0:00:05]} d6 {[%emt 0:00:22]} 3. Bb5+ {[%emt 0:00:06]} Nd7 {[%emt 0:00:37]} 4. O-O {[%emt 0:00:09]} a6 {[%emt 0:00:29]} 5. Bxd7+ {[%emt 0:00:08]} Bxd7 {[%emt 0:00:06]} 6. d4 {[%emt 0:00:03]} cxd4 {[%emt 0:00:52]} 7. Qxd4 {[%emt 0:00:05]} Rc8 {[%emt 0:01:46]} 8. a4 {[%emt 0:02:03]} e5 {[%emt 0:03:05]} 9. Qd3 {[%emt 0:02:52]} Qc7 {[%emt 0:00:20]} 10. Nc3 {[%emt 0:00:24]} Be6 {[%emt 0:00:23]} 11. Rd1 {[%emt 0:01:33]} Qc4 {[%emt 0:05:48]} 12. Qxc4 {[%emt 0:05:21]} Rxc4 {[%emt 0:00:18]} 13. Be3 {[%emt 0:07:19]} h6 {[%emt 0:02:06]} 14. Nd2 {[%emt 0:01:41]} Rc8 {[%emt 0:00:29]} 15. Nf1 {[%emt 0:03:06]} Nf6 {[%emt 0:06:53]} 16. f3 {[%emt 0:00:23]} Be7 {[%emt 0:00:57]} 17. Bf2 {[%emt 0:01:35]} O-O {[%emt 0:07:12]} 18. Ne3 {[%emt 0:02:10]} Rfe8 {[%emt 0:11:34]} 19. a5 {[%emt 0:01:05]} g6 {[%emt 0:11:19]} 20. Na4 {[%emt 0:06:25]} Nd7 {[%emt 0:01:24]} 21. b3 {[%emt 0:02:55]} f5 {[%emt 0:00:15]} 22. c4 {[%emt 0:00:47]} Nc5 {[%emt 0:12:43]} 23. Nxc5 {[%emt 0:11:50]} dxc5 {[%emt 0:00:18]} 24. Nd5 {[%emt 0:04:37]} Kf7 {[%emt 0:00:38]} 25. Ra2 {[%emt 0:09:58]} Red8 {[%emt 0:09:12]} 26. Rad2 {[%emt 0:05:03]} Bxd5 {[%emt 0:09:15]} 27. Rxd5 {[%emt 0:04:13]} Rxd5 {[%emt 0:00:55]} 28. Rxd5 {[%emt 0:01:09]} Ke6 {[%emt 0:00:42]} 29. Kf1 {[%emt 0:02:13]} Bd6 {[%emt 0:02:49]} 30. Ke2 {[%emt 0:01:17]} Rc6 {[%emt 0:01:34]} 31. Kd3 {[%emt 0:02:09]} Rc8 {[%emt 0:00:52]} 32. exf5+ {[%emt 0:02:32]} gxf5 {[%emt 0:00:29]} 33. g4 {[%emt 0:00:31]} fxg4 {[%emt 0:02:40]} 34. fxg4 {[%emt 0:00:12]} Rf8 {[%emt 0:01:51]} 35. Ke2 {[%emt 0:00:23]} Rc8 {[%emt 0:04:51]} 36. Be3 {[%emt 0:00:46]} Bf8 {[%emt 0:01:18]} 37. Kf3 {[%emt 0:00:17]} Bd6 {[%emt 0:01:13]} 38. h3 {[%emt 0:01:57]} Rf8+ {[%emt 0:00:20]} 39. Ke2 {[%emt 0:02:23]} Rf6 {[%emt 0:00:45]} 40. Bxc5 {[%emt 0:01:50]} Bxc5 {[%emt 0:00:05]} 41. Rxc5 {[%emt 0:30:03]} Rf7 {[%emt 0:31:12]} 42. b4 {[%emt 0:12:15]} h5 {[%emt 0:00:00]} 43. gxh5 {[%emt 0:00:00]} Rh7 {[%emt 0:00:00]} 44. b5 {[%emt 0:00:00]} axb5 {[%emt 0:00:00]} 45. cxb5 {[%emt 0:00:00]} Kd6 {[%emt 0:00:00]} 46. Rc3 {[%emt 0:00:00]} Rxh5 {[%emt 0:00:00]} 47. a6 {[%emt 0:00:00]} bxa6 {[%emt 0:00:00]} 48. bxa6 {[%emt 0:00:00]} Rh7 {[%emt 0:00:00]} 49. Ra3 {[%emt 0:00:00]} Ra7 {[%emt 0:00:00]} 50. Ke3 {[%emt 0:00:00]} Kc7 {[%emt 0:00:00]} 51. h4 {[%emt 0:00:00]} Kb8 {[%emt 0:00:00]} 52. Kf3 {[%emt 0:00:00]} Rg7 {[%emt 0:00:00]} 53. a7+ {[%emt 0:00:00]} Ka8 {[%emt 0:00:00]} 54. Ra4 {[%emt 0:00:00]} Rg1 {[%emt 0:00:00]} 55. h5 {[%emt 0:00:55]} Rh1 {[%emt 0:00:00]} 56. Kg4 {[%emt 0:00:31]} Rg1+ {[%emt 0:00:00]} 57. Kf5 {[%emt 0:00:54]} Rf1+ {[%emt 0:02:09]} 58. Kg5 {[%emt 0:00:34]} Rg1+ {[%emt 0:00:18]} 59. Rg4 {[%emt 0:00:36]} Rh1 {[%emt 0:02:32]} 60. h6 {[%emt 0:00:48]} Kxa7 {[%emt 0:01:54]} 61. Rh4 {[%emt 0:00:57]} Rg1+ {[%emt 0:00:54]} 62. Kh5 {[%emt 0:01:16]} Rg8 {[%emt 0:01:34]} 63. h7 {[%emt 0:00:56]} 1-0

[Event "FIDE World Senior-Women CC 2023"]
[Site "Terrasini"]
[Date "2023.10.26"]
[Round "2.3"]
[White "Folkova, Martina"]
[Black "Tereladze, Sopio"]
[Result "1-0"]
[ECO "C88"]
[WhiteElo "2022"]
[BlackElo "2215"]
[Annotator "RC"]
[PlyCount "87"]
[EventDate "2023.10.22"]
[EventType "swiss"]
[EventCountry "ITA"]
[SourceTitle "playchess.com"]
[Source "ChessBase"]
[SourceQuality "1"]
[TimeControl "40/5400+30:1800+30"]

1. e4 {[%emt 0:00:05]} e5 {[%emt 0:00:06]} 2. Nf3 {[%emt 0:00:11]} Nc6 {[%emt 0:00:05]} 3. Bb5 {[%emt 0:00:09]} a6 {[%emt 0:00:04]} 4. Ba4 {[%emt 0:00:04]} Nf6 {[%emt 0:00:02]} 5. O-O {[%emt 0:00:13]} Be7 {[%emt 0:00:06]} 6. Re1 {[%emt 0:00:10]} b5 {[%emt 0:00:09]} 7. Bb3 {[%emt 0:00:05]} O-O {[%emt 0:00:04]} 8. a4 {[%emt 0:00:36]} b4 {[%emt 0:00:33]} 9. d4 {[%emt 0:01:05]} d6 {[%emt 0:00:37]} 10. dxe5 {[%emt 0:01:03]} dxe5 {[%emt 0:01:50]} 11. Nbd2 {[%emt 0:01:30]} Bb7 {[%emt 0:02:37]} 12. a5 {[%emt 0:08:27]} Bc5 {[%emt 0:06:49]} 13. h3 {[%emt 0:04:44]} Qe7 {[%emt 0:06:30]} 14. Qe2 {[%emt 0:20:42]} Rad8 {[%emt 0:07:23]} 15. c3 {[%emt 0:05:01]} Nh5 {[%emt 0:09:47]} 16. Bc4 {[%emt 0:06:05]} Rd6 {[%emt 0:01:18]} 17. Nb3 {[%emt 0:07:26]} Ba7 {[%emt 0:06:59]} 18. Bg5 {[%emt 0:02:00]} Qe8 {[%emt 0:03:46]} 19. Be3 {[%emt 0:04:55]} Bxe3 {[%emt 0:02:02]} 20. Qxe3 {[%emt 0:01:38]} bxc3 {[%emt 0:00:52]} 21. bxc3 {[%emt 0:00:31]} Nf4 {[%emt 0:06:19]} 22. Nc5 {[%emt 0:07:26]} Bc8 {[%emt 0:00:24]} 23. Bf1 {[%emt 0:06:02]} Qe7 {[%emt 0:01:44]} 24. Kh2 {[%emt 0:03:16]} Rh6 {[%emt 0:12:28]} 25. Nd3 {[%emt 0:05:07]} g5 {[%emt 0:03:38]} 26. Ng1 {[%emt 0:05:05]} Qf6 {[%emt 0:02:21]} 27. f3 {[%emt 0:04:45]} Qg6 {[%emt 0:06:01]} 28. Nf2 {[%emt 0:01:37]} Kh8 {[%emt 0:02:45]} 29. Ng4 {[%emt 0:01:05]} Rh5 {[%emt 0:03:11]} 30. Ne2 {[%emt 0:00:53]} Nxe2 {[%emt 0:05:34]} 31. Bxe2 {[%emt 0:00:09]} Qe6 {[%emt 0:01:29]} 32. Qc5 {[%emt 0:00:26]} Kg7 {[%emt 0:04:52]} 33. Red1 {[%emt 0:00:13]} Re8 {[%emt 0:01:31]} 34. Rd5 {[%emt 0:00:57]} Rh4 {[%emt 0:00:12]} 35. Bc4 {[%emt 0:00:35]} Qg6 {[%emt 0:01:35]} 36. Nxe5 {[%emt 0:00:30]} Nxe5 {[%emt 0:00:57]} 37. Rxe5 {[%emt 0:00:01]} Rxe5 {[%emt 0:00:19]} 38. Qxe5+ {[%emt 0:00:01]} Qf6 {[%emt 0:00:23]} 39. Qxf6+ {[%emt 0:02:06]} Kxf6 {[%emt 0:00:02]} 40. Kg3 {[%emt 0:00:20]} Rh6 {[%emt 0:00:07]} 41. Rb1 {[%emt 0:31:53]} Ke7 {[%emt 0:30:03]} 42. Rb8 {[%emt 0:00:00]} Kd7 {[%emt 0:00:00]} 43. Bxf7 {[%emt 0:00:00]} Rc6 {[%emt 0:00:00]} 44. Bh5 {[%emt 0:00:00]} 1-0

[Event "FIDE World Senior-Women CC 2023"]
[Site "Terrasini"]
[Date "2023.10.26"]
[Round "2.4"]
[White "Burchardt, Brigitte"]
[Black "Khropova, Larisa"]
[Result "1/2-1/2"]
[ECO "B23"]
[WhiteElo "2124"]
[BlackElo "2054"]
[Annotator "NA RC"]
[PlyCount "28"]
[EventDate "2023.10.22"]
[EventType "swiss"]
[EventCountry "ITA"]
[SourceTitle "playchess.com"]
[Source "ChessBase"]
[SourceQuality "1"]
[TimeControl "40/5400+30:1800+30"]

1. e4 {[%emt 0:00:03]} c5 {[%emt 0:00:07]} 2. Nc3 {[%emt 0:00:04]} e6 {[%emt 0:00:13]} 3. g3 {[%emt 0:02:22]} d5 {[%emt 0:01:06]} 4. d3 {[%emt 0:01:43]} d4 {[%emt 0:01:59]} 5. Nce2 {[%emt 0:01:10]} e5 {[%emt 0:00:55]} 6. f4 {[%emt 0:01:35]} Nc6 {[%emt 0:00:39]} 7. Nf3 {[%emt 0:03:04]} f6 {[%emt 0:01:33]} 8. Bg2 {[%emt 0:07:02]} Bd6 {[%emt 0:01:44]} 9. O-O {[%emt 0:06:12]} Bd7 {[%emt 0:05:05]} 10. c3 {[%emt 0:09:47]} Qb6 {[%emt 0:15:13]} 11. Kh1 {[%emt 0:09:57]} O-O-O {[%emt 0:01:14]} 12. Nd2 {[%emt 0:15:21]} Be6 {[%emt 0:03:55]} 13. Qc2 {[%emt 0:10:03]} Kb8 {[%emt 0:08:03]} 14. a3 {[%emt 0:06:12]} Qa6 {[%emt 0:02:47]} 1/2-1/2